bitfinex/quotes_SOLUSD_20260201
["timestamp","ask_amount","ask_price","bid_price","bid_amount"]
[1769988214914,23.26357205,99.73,99.65,4.27527085]
[1769988214915,23.26357205,99.7,99.631,4.22243056]
[1769988215117,23.26357205,99.66,99.631,4.22243056]
[1769988215527,23.26357205,99.72,99.592,33.24086188]
[1769988215528,4.61624295,99.715,99.632,4.22243056]
[1769988215700,23.26357205,99.67,99.632,4.22243056]
[1769988215902,23.26357205,99.67,99.592,27.88]
[1769988215903,23.26357205,99.65,99.614,4.22243056]
[1769988216104,23.26357205,99.67,99.62,23.26357205]
[1769988216316,23.26357205,99.66,99.616,4.22243056]
[1769988216519,23.26357205,99.66,99.618,4.22243056]
[1769988216719,4.33191981,99.67,99.601,4.22243056]
[1769988217025,23.26357205,99.65,99.601,4.22243056]
[1769988217231,10.03089515,99.692,99.631,4.22243056]
[1769988217409,10.03089515,99.692,99.63,23.26357205]
[1769988217410,23.26357205,99.69,99.641,4.22243056]
[1769988217732,23.26357205,99.71,99.671,4.18341288]
[1769988217945,23.26357205,99.7,99.653,4.18341288]
[1769988218225,23.26357205,99.71,99.66,23.26357205]
[1769988218429,23.26357205,99.71,99.653,4.18341288]
[1769988218430,23.26357205,99.69,99.654,10.03472013]
[1769988218649,23.26357205,99.67,99.614,4.18341288]
[1769988218945,23.26357205,99.66,99.616,4.18341288]
[1769988219114,23.26357205,99.65,99.616,4.18341288]
[1769988219320,23.26357205,99.67,99.618,4.18341288]
[1769988219518,23.26357205,99.69,99.641,4.18341288]
[1769988219709,23.26357205,99.7,99.651,4.18341288]
[1769988220099,23.26357205,99.69,99.651,4.18341288]
[1769988220402,10.02908434,99.71,99.634,4.18341288]
[1769988220403,23.26357205,99.67,99.634,4.18341288]
[1769988220606,4.18823364,99.701,99.624,27.88]
[1769988220607,23.26357205,99.69,99.64,27.44698493]
[1769988220909,23.26357205,99.68,99.641,4.18341288]
[1769988221106,4.18823364,99.755,99.675,4.18341288]
[1769988221325,23.26357205,99.75,99.691,4.18341288]
[1769988221818,23.26357205,99.72,99.68,23.26357205]
[1769988222407,23.26357205,99.71,99.67,23.26357205]
[1769988222608,23.26357205,99.7,99.659,10.03415186]
[1769988222814,23.26357205,99.69,99.653,10.0347659]
[1769988223129,23.26357205,99.69,99.653,14.21817878]
[1769988223426,10.02435919,99.757,99.681,4.18341288]
[1769988223611,4.18823364,99.749,99.7,23.26357205]
[1769988223806,23.26357205,99.71,99.67,23.26357205]
[1769988224311,23.26357205,99.74,99.691,4.18341288]
[1769988224631,23.26357205,99.78,99.733,4.18341288]
[1769988224818,7.57630505,99.879,99.732,10.02687201]
[1769988224819,7.57630505,99.913,99.771,4.18341288]
[1769988225022,23.26357205,99.85,99.801,0.28432314]
[1769988225228,23.26357205,99.83,99.759,4.18341288]
[1769988225404,23.26357205,99.8,99.763,4.18341288]
[1769988225605,23.26357205,99.81,99.763,4.18341288]
[1769988225826,23.26357205,99.79,99.743,4.16388851]
[1769988226006,4.18823364,99.829,99.743,4.16388851]
[1769988226314,4.18823364,99.829,99.734,27.88]
[1769988226315,4.38760061,99.846,99.781,4.16388851]
[1769988226520,23.26357205,99.83,99.781,14.18580569]
[1769988226716,10.01612596,99.839,99.781,14.18580569]
[1769988226717,23.26357205,99.82,99.781,4.16388851]
[1769988226916,23.26357205,99.8,99.758,10.02418129]
[1769988227122,0.28432314,99.835,99.765,4.16388851]
[1769988227312,23.26357205,99.8,99.765,4.16388851]
[1769988227517,23.26357205,99.81,99.766,10.02343609]
[1769988227713,23.26357205,99.8,99.759,10.02406503]
[1769988228014,23.26357205,99.81,99.77,23.26357205]
[1769988228216,23.26357205,99.85,99.8,23.26357205]
[1769988228411,23.26357205,99.86,99.801,4.16388851]
[1769988228627,23.26357205,99.85,99.802,10.01983928]
[1769988228930,23.26357205,99.83,99.783,4.16388851]
[1769988229332,23.26357205,99.82,99.783,4.16388851]
[1769988229526,23.26357205,99.82,99.765,4.16388851]
[1769988229828,4.27527085,99.857,99.81,23.26357205]
[1769988230029,23.26357205,99.85,99.81,23.26357205]
[1769988230248,4.38760061,99.873,99.81,23.26357205]
[1769988230433,23.26357205,99.86,99.82,23.26357205]
[1769988230734,23.26357205,99.85,99.81,23.26357205]
[1769988231139,23.26357205,99.9,99.841,4.16388851]
[1769988231339,10.00553614,99.945,99.891,4.16388851]
[1769988231639,1e-08,99.92,99.9,23.26357205]
[1769988231939,1e-08,99.927,99.91,23.26357205]
[1769988232119,4.38760061,100.01,99.921,4.16388851]
[1769988232312,0.1,100.03,99.971,4.16388851]
[1769988232637,0.1,100.03,99.904,33.22086188]
[1769988232638,4.27527085,100.0,99.946,10.00540291]
[1769988232840,0.1,100.03,99.95,23.26357205]
[1769988233023,23.36357205,100.03,99.946,35.0189102]
[1769988233226,0.1,100.03,100.0,23.26357205]
[1769988233422,0.1,100.03,99.964,5.36086188]
[1769988233423,0.1,100.03,100.01,4.16388851]
[1769988233618,23.26357205,100.08,100.02,23.26357205]
[1769988233817,0.29796506,100.1,100.07,23.26357205]
[1769988234040,1e-08,100.1,100.03,4.16388851]
[1769988234217,1e-08,100.1,100.08,27.42746056]
[1769988234418,1e-08,100.15,100.12,4.16388851]
[1769988234837,23.26357205,100.13,100.09,4.16388851]
[1769988235035,1e-08,100.15,100.12,23.26357205]
[1769988235245,1e-08,100.15,100.13,27.42746056]
[1769988235428,23.26357205,100.18,100.11,4.16388851]
[1769988235618,4.40705541,100.19,100.11,4.16388851]
[1769988235619,23.26357205,100.17,100.12,23.26357205]
[1769988235821,4.40705541,100.16,100.09,4.16388851]
[1769988236022,4.40705541,100.15,100.08,4.16388851]
[1769988236325,23.26357205,100.11,100.07,9.99284549]
[1769988236537,33.25460174,100.09,100.06,4.16388851]
[1769988236730,23.26357205,100.07,100.03,4.16388851]
[1769988236932,23.26357205,100.06,100.02,4.16388851]
[1769988237438,23.26357205,100.05,100.0,14.1633857]
[1769988237644,0.14216157,100.07,100.01,14.16275302]
[1769988237942,23.26357205,100.08,100.03,23.26357205]
[1769988238140,4.40705541,100.09,100.04,23.26357205]
[1769988238141,23.54789519,100.09,100.04,23.26357205]
[1769988238440,27.82,100.13,100.02,4.16388851]
[1769988238441,27.82,100.13,100.07,27.42746056]
[1769988238628,9.97406742,100.26,100.13,4.16388851]
[1769988238956,23.26357205,100.17,100.12,23.26357205]
[1769988239440,23.26357205,100.15,100.11,4.16388851]
[1769988239642,8.68232626,100.15,100.08,23.26357205]
[1769988239943,23.26357205,100.17,100.11,27.42746056]
[1769988240147,23.26357205,100.17,100.12,23.26357205]
[1769988240319,23.26357205,100.17,100.11,4.16388851]
[1769988240644,23.26357205,100.22,100.16,27.42746056]
[1769988240841,23.26357205,100.19,100.14,23.26357205]
[1769988241145,23.26357205,100.2,100.15,33.24820489]
[1769988241444,4.40705541,100.26,100.19,27.42746056]
[1769988241640,9.97134,100.29,100.24,23.26357205]
[1769988241822,0.3109607,100.32,100.27,23.26357205]
[1769988242018,33.54290713,100.32,100.27,23.26357205]
[1769988242242,23.26357205,100.29,100.24,23.26357205]
[1769988242543,23.26357205,100.28,100.23,23.54789519]
[1769988242850,23.57453275,100.32,100.26,27.7117837]
[1769988243143,0.3109607,100.32,100.28,27.42746056]
[1769988243336,23.26357205,100.35,100.29,9.80907353]
[1769988243545,23.26357205,100.33,100.27,27.7117837]
[1769988243729,23.26357205,100.28,100.22,4.44821165]
[1769988244039,23.26357205,100.27,100.23,4.16388851]
[1769988244433,27.5388429,100.28,100.23,10.26135711]
[1769988244639,23.26357205,100.26,100.22,4.16388851]
[1769988244965,23.26357205,100.25,100.16,49.91975996]
[1769988245258,4.40705541,100.28,100.21,23.26357205]
[1769988245466,23.26357205,100.33,100.27,23.26357205]
[1769988245669,25.73572242,100.37,100.31,23.26357205]
[1769988245950,27.76,100.41,100.22,133.97212]
[1769988245951,23.26357205,100.41,100.22,133.97212]
[1769988246133,4.40705541,100.38,100.32,23.54789519]
[1769988246335,23.26357205,100.33,100.27,23.26357205]
[1769988246543,23.26357205,100.31,100.23,32.03527085]
[1769988246746,23.26357205,100.27,100.23,27.76]
[1769988246951,0.28432314,100.23,100.1,4.16388851]
[1769988247149,23.26357205,100.2,100.15,27.42746056]
[1769988247354,23.26357205,100.18,100.12,4.16388851]
[1769988247558,4.38800619,100.18,100.1,33.25339062]
[1769988247855,23.26357205,100.18,100.12,27.58408611]
[1769988248348,0.28432314,100.17,100.12,27.58408611]
[1769988248534,23.26357205,100.13,100.09,4.32051406]
[1769988248734,23.26357205,100.14,100.09,4.32051406]
[1769988248997,23.26357205,100.13,100.08,23.26357205]
[1769988249133,23.26357205,100.13,100.05,27.58408611]
[1769988249134,23.26357205,100.11,100.05,27.58408611]
[1769988249325,23.26357205,100.1,100.05,14.31531922]
[1769988249531,4.38800619,100.1,100.03,14.31708628]
[1769988249734,23.26357205,100.08,100.04,4.32051406]
[1769988249954,23.26357205,100.09,100.04,4.32051406]
[1769988250156,23.26357205,100.06,100.03,9.99625372]
[1769988250452,23.26357205,100.07,100.03,4.32051406]
[1769988250633,23.26357205,100.07,100.02,9.99794882]
[1769988250829,23.26357205,100.06,100.0,55.32408611]
[1769988251036,23.26357205,100.01,99.979,10.00206762]
[1769988251437,23.26357205,100.0,99.944,4.32051406]
[1769988251644,23.26357205,100.01,99.96,23.26357205]
[1769988251942,23.26357205,100.01,99.945,35.01926058]
[1769988251943,23.26357205,99.99,99.945,10.00550302]
[1769988252142,23.26357205,99.97,99.91,23.26357205]
[1769988252355,23.26357205,99.97,99.92,23.26357205]
[1769988252656,4.27527085,100.0,99.945,10.00550302]
[1769988252657,23.26357205,100.0,99.945,10.00550302]
[1769988252872,23.26357205,100.02,99.961,4.32051406]
[1769988253047,49.94868505,100.11,100.02,4.32051406]
[1769988253048,4.38800619,100.11,100.02,4.32051406]
[1769988253252,4.38800619,100.1,100.04,23.26357205]
[1769988253448,23.26357205,100.07,100.02,23.26357205]
[1769988253651,23.26357205,100.05,100.0,23.26357205]
[1769988253853,23.26357205,100.04,99.985,27.76]
[1769988254153,23.54789519,100.05,99.99,23.26357205]
[1769988254347,0.28432314,100.05,100.01,23.26357205]
[1769988254553,23.26357205,100.04,99.99,23.26357205]
[1769988254764,23.26357205,100.04,99.991,10.00090008]
[1769988254948,23.26357205,100.04,99.991,35.00315028]
[1769988255147,23.26357205,100.04,99.991,10.00090008]
[1769988255349,27.65157824,100.06,100.01,23.26357205]
[1769988255558,23.26357205,100.05,100.0,23.26357205]
[1769988255748,14.38009288,100.08,100.02,23.26357205]
[1769988255946,23.26357205,100.06,100.0,23.26357205]
[1769988256181,14.38009288,100.08,100.01,23.26357205]
[1769988256373,23.26357205,100.06,100.01,23.26357205]
[1769988256871,23.26357205,100.08,100.03,23.26357205]
[1769988257169,23.26357205,100.05,100.01,4.32051406]
[1769988257356,23.26357205,100.05,99.934,49.19489804]
[1769988257357,23.26357205,100.02,99.971,10.0028877]
[1769988257674,23.26357205,100.02,99.972,4.32051406]
[1769988257975,23.26357205,100.03,99.987,10.00127337]
[1769988258157,4.38800619,100.06,100.01,9.9988701]
[1769988258158,23.26357205,100.05,100.01,9.9988701]
[1769988258358,23.26357205,100.02,99.98,10.00197753]
[1769988258552,23.26357205,100.02,99.978,10.00211885]
[1769988258757,4.27527085,100.06,99.953,4.32051406]
[1769988258758,23.26357205,100.01,99.953,4.32051406]
[1769988258955,23.26357205,99.99,99.953,4.32051406]
[1769988259266,23.26357205,99.99,99.958,10.00413204]
[1769988259460,23.26357205,99.98,99.948,27.76]
[1769988259768,23.26357205,99.97,99.934,4.32051406]
[1769988259972,23.26357205,99.99,99.949,10.0051026]
[1769988260351,23.26357205,100.0,99.951,4.32051406]
[1769988260549,23.26357205,100.0,99.953,4.32051406]
[1769988260755,23.26357205,99.98,99.933,0.28432314]
[1769988260967,23.26357205,99.99,99.95,0.28432314]
[1769988261166,4.38800619,99.969,99.855,50.63962429]
[1769988261372,4.27527085,99.867,99.801,4.32051406]
[1769988261573,4.30068485,99.897,99.819,4.63147476]
[1769988261771,4.27527085,99.898,99.82,4.32051406]
[1769988261971,4.38800619,99.898,99.82,4.32051406]
[1769988262175,4.42206306,99.896,99.83,23.26357205]
[1769988262359,23.26357205,99.91,99.86,23.26357205]
[1769988262565,23.26357205,99.91,99.854,2.36525709]
[1769988262776,23.26357205,99.94,99.89,23.26357205]
[1769988262980,25.01075462,99.957,99.9,23.26357205]
[1769988263278,10.00330108,99.967,99.9,23.26357205]
[1769988263477,23.26357205,99.93,99.882,2.36525709]
[1769988263680,23.26357205,99.93,99.778,1.00222493]
[1769988263681,23.26357205,99.9,99.833,25.04163862]
[1769988264012,35.0115538,99.967,98.953,127.12053239]
[1769988264013,4.27527085,99.964,99.89,23.26357205]
[1769988264178,23.26357205,99.95,99.865,8.01044211]
[1769988264354,23.26357205,99.94,99.89,23.26357205]
[1769988264556,23.26357205,99.91,99.855,4.27527085]
[1769988264761,4.67232933,99.866,99.743,2.36525709]
[1769988265061,27.78,99.909,99.736,10.02644687]
[1769988265062,23.26357205,99.78,99.736,10.02644687]
[1769988265273,23.26357205,99.75,99.705,25.07374156]
[1769988265476,23.26357205,99.74,99.705,25.07374156]
[1769988265780,4.38800619,99.801,99.72,23.26357205]
[1769988265967,23.26357205,99.79,99.73,23.26357205]
[1769988266165,23.26357205,99.81,99.76,23.26357205]
[1769988266373,4.38800619,99.809,99.75,23.26357205]
[1769988266572,4.38800619,99.809,99.76,23.26357205]
[1769988266884,4.38800619,99.809,99.75,23.26357205]
[1769988267178,23.26357205,99.78,99.735,35.09299643]
[1769988267381,23.26357205,99.79,99.74,23.26357205]
[1769988267676,23.26357205,99.76,99.735,10.02657041]
[1769988268176,23.26357205,99.78,99.735,35.09299643]
[1769988268579,4.38800619,99.808,99.761,0.28432314]
[1769988268757,27.8,99.873,99.735,35.09299643]
[1769988268758,23.26357205,99.84,99.791,10.02094377]
[1769988268961,23.26357205,99.82,99.782,10.02175579]
[1769988269174,4.38800619,99.83,99.71,0.2]
[1769988269175,23.26357205,99.83,99.79,10.02097052]
[1769988269373,27.65157824,99.84,99.79,33.28454257]
[1769988269764,27.65157824,99.84,99.79,58.33715305]
[1769988269964,4.38800619,99.839,99.791,10.02094377]
[1769988270479,4.38800619,99.859,99.82,23.26357205]
[1769988270689,4.38800619,99.859,99.83,23.26357205]
[1769988270865,69.04452635,99.86,99.831,10.0169286]
[1769988271059,4.38800619,99.839,99.79,23.26357205]
[1769988271262,4.38800619,99.839,99.781,0.28432314]
[1769988271572,23.26357205,99.83,99.806,10.01940972]
[1769988272088,4.38800619,99.839,99.806,10.01940972]
[1769988272781,4.38800619,99.839,99.767,2.67621779]
[1769988272782,4.38800619,99.819,99.76,23.26357205]
[1769988272974,23.26357205,99.8,99.759,25.06014631]
[1769988273282,4.38800619,99.838,99.78,23.26357205]
[1769988273581,13.5171798,99.86,99.83,23.26357205]
[1769988273786,4.38800619,99.898,99.85,23.26357205]
[1769988274084,4.5,99.899,99.86,23.26357205]
[1769988274275,4.5,99.919,99.88,23.26357205]
[1769988274476,23.26357205,99.92,99.87,23.18298132]
[1769988274477,4.5,99.909,99.87,23.18298132]
[1769988274888,4.5,99.909,99.871,10.01291666]
[1769988275387,4.5,99.929,99.88,23.18298132]
[1769988275698,38.92273204,99.972,99.921,0.28432314]
[1769988275900,38.92273204,99.972,99.891,0.28432314]
[1769988275901,23.18298132,99.96,99.891,0.28432314]
[1769988276083,23.18298132,99.96,99.92,23.18298132]
[1769988276282,38.92273204,99.972,99.94,23.18298132]
[1769988276790,38.92273204,99.972,99.941,10.00590348]
[1769988278091,23.18298132,99.95,99.91,23.18298132]
[1769988278290,23.18298132,99.95,99.921,10.00790059]
[1769988278675,4.19820117,99.959,99.921,10.00790059]
[1769988278870,4.19820117,99.959,99.92,23.18298132]
[1769988279072,25.00071587,99.998,99.897,4.26554776]
[1769988279073,23.18298132,100.01,99.951,0.28432314]
[1769988279279,31.13818563,100.01,99.98,23.18298132]
[1769988279480,4.19820117,100.06,100.0,23.18298132]
[1769988279679,24.98462679,100.07,100.02,23.18298132]
[1769988279680,23.18298132,100.07,100.02,23.18298132]
[1769988279981,6.33219926,100.09,100.06,23.18298132]
[1769988280183,4.19820117,100.06,99.932,49.11856962]
[1769988280384,4.19820117,99.959,99.885,85.09786254]
[1769988280604,4.19820117,99.959,99.885,10.01151324]
[1769988280887,23.18298132,99.95,99.901,35.03468433]
[1769988281094,23.18298132,99.94,99.901,10.00990981]
[1769988281289,23.18298132,99.93,99.901,10.00990981]
[1769988281470,23.18298132,99.92,99.892,10.01074886]
[1769988281671,23.18298132,99.94,99.901,10.00990981]
[1769988281891,23.18298132,99.96,99.911,0.28432314]
[1769988282080,23.18298132,99.97,99.92,23.18298132]
[1769988282293,4.19820117,99.978,99.93,23.18298132]
[1769988282476,23.18298132,99.97,99.92,23.18298132]
[1769988282672,4.19820117,99.978,99.921,0.28432314]
[1769988282886,4.19820117,99.978,99.91,23.18298132]
[1769988282887,23.18298132,99.96,99.91,23.18298132]
[1769988283197,23.18298132,99.97,99.921,0.28432314]
[1769988283397,23.18298132,99.99,99.94,23.18298132]
[1769988283691,23.18298132,99.97,99.92,23.18298132]
[1769988283875,23.18298132,99.97,99.921,0.28432314]
[1769988284080,23.18298132,99.96,99.912,0.28432314]
[1769988284392,23.18298132,99.92,99.869,32.06554776]
[1769988284706,4.27527085,99.975,99.774,71.56217481]
[1769988284707,23.18298132,99.89,99.859,25.03520671]
[1769988284989,23.18298132,99.96,99.851,25.03730558]
[1769988284990,27.38118249,99.9,99.851,25.03730558]
[1769988285694,23.18298132,99.88,99.841,10.01592532]
[1769988285876,23.18298132,99.88,99.841,35.05573862]
[1769988286276,23.18298132,99.89,99.841,35.05573862]
[1769988286596,23.18298132,99.9,99.85,23.18298132]
[1769988286793,4.24704293,99.899,99.85,23.18298132]
[1769988286989,23.18298132,99.9,99.85,23.18298132]
[1769988287192,23.18298132,99.89,99.851,10.01492223]
[1769988288076,23.18298132,99.89,99.851,35.05222781]
[1769988288483,23.18298132,99.9,99.851,35.05222781]
[1769988288679,23.18298132,99.91,99.86,23.18298132]
[1769988289085,4.24704293,99.914,99.871,10.01291666]
[1769988289393,23.18298132,99.91,99.871,10.01291666]
[1769988289580,4.24704293,99.914,99.871,10.01291666]
[1769988289778,23.18298132,99.91,99.871,10.01291666]
[1769988290202,23.18298132,99.91,99.871,35.04520831]
[1769988290499,23.18298132,99.94,99.89,23.18298132]
[1769988291004,23.18298132,99.95,99.9,23.18298132]
[1769988291189,23.18298132,99.95,99.901,10.00990981]
[1769988291389,10.0048023,99.952,99.901,10.00990981]
[1769988291390,23.18298132,99.94,99.901,10.00990981]
[1769988291800,62.7,99.959,99.91,23.18298132]
[1769988291992,62.7,99.959,99.901,35.03468433]
[1769988291993,23.18298132,99.94,99.901,10.00990981]
[1769988292399,23.18298132,99.94,99.901,35.03468433]
[1769988292586,85.88298132,99.96,99.91,23.18298132]
[1769988292790,23.18298132,99.94,99.901,35.03468433]
[1769988293098,23.18298132,99.94,99.901,25.02477452]
[1769988294892,62.7,99.96,99.91,23.18298132]
[1769988295104,23.18298132,99.95,99.91,23.18298132]
[1769988295409,4.24704293,99.939,99.888,27.8]
[1769988295700,23.18298132,99.94,99.901,10.00990981]
[1769988296017,4.24704293,99.956,99.92,23.18298132]
[1769988296186,4.24704293,99.956,99.911,0.28432314]
[1769988296387,23.18298132,99.95,99.902,0.28432314]
[1769988296589,4.24704293,99.956,99.91,23.18298132]
[1769988296899,4.24704293,99.956,99.911,35.03117774]
[1769988298302,23.18298132,99.94,99.904,10.00951804]
[1769988298892,23.18298132,99.94,99.9,23.18298132]
[1769988299406,4.24704293,99.949,99.9,23.18298132]
[1769988299592,10.00410168,99.959,99.902,4.26955312]
[1769988299794,23.18298132,99.92,99.888,10.01115326]
[1769988300095,4.24704293,99.929,99.894,10.01055877]
[1769988300296,62.7,99.96,99.92,23.18298132]
[1769988300487,62.7,99.96,99.894,39.31235773]
[1769988300488,23.18298132,99.99,99.94,23.18298132]
[1769988300686,4.24704293,100.03,99.97,23.18298132]
[1769988300887,0.1,100.04,100.01,34.99650033]
[1769988301089,0.1,100.04,100.03,23.18298132]
[1769988301306,0.1,100.04,100.01,58.46380479]
[1769988301531,0.1,100.04,100.01,33.18198141]
[1769988301709,0.1,100.04,100.02,23.18298132]
[1769988302196,29.25595564,100.08,100.02,23.18298132]
[1769988302197,23.18298132,100.08,100.03,23.18298132]
[1769988302403,27.43002425,100.06,100.02,27.8]
[1769988302597,27.43002425,100.03,99.971,0.28432314]
[1769988302783,23.18298132,100.01,99.99,10.00097696]
[1769988302987,23.18298132,100.06,100.0,23.46730446]
[1769988303219,4.24704293,100.09,100.04,23.46730446]
[1769988303391,0.1,100.1,100.06,23.18298132]
[1769988303710,4.24704293,100.13,100.09,23.46730446]
[1769988303894,4.24704293,100.11,100.04,9.91473814]
[1769988304205,23.18298132,100.05,100.01,23.18298132]
[1769988304407,23.18298132,100.02,99.965,4.26955312]
[1769988304601,23.18298132,100.0,99.976,10.00236688]
[1769988304908,8.52231378,100.07,99.992,5.36086188]
[1769988305089,23.18298132,100.06,100.01,23.18298132]
[1769988305414,27.43002425,100.06,100.01,23.18298132]
[1769988305603,4.24704293,100.1,100.03,27.73685758]
[1769988305794,23.18298132,100.08,100.04,23.18298132]
[1769988306111,27.43002425,100.1,100.05,23.18298132]
[1769988306310,4.24704293,100.12,100.09,23.18298132]
[1769988306487,4.24704293,100.12,100.08,23.18298132]
[1769988306692,6.33602441,100.16,100.11,23.46730446]
[1769988307009,6.33602441,100.16,100.13,9.98682812]
[1769988307207,1e-08,100.16,100.15,23.18298132]
[1769988307386,33.16767285,100.16,100.11,9.98824088]
[1769988307591,23.18298132,100.12,100.08,23.18298132]
[1769988307796,23.18298132,100.1,100.05,48.45330653]
[1769988307998,23.18298132,100.08,100.04,37.77525323]
[1769988308209,34.94475542,100.16,100.07,27.45612636]
[1769988308415,1e-08,100.16,100.14,23.46730446]
[1769988308599,23.18298132,100.22,100.15,33.10131138]
[1769988308906,23.18298132,100.22,100.18,23.18298132]
[1769988309110,23.18298132,100.24,100.19,23.18298132]
[1769988309298,33.15946542,100.24,100.19,23.18298132]
[1769988309484,33.15946542,100.24,100.2,23.18298132]
[1769988309485,23.18298132,100.24,100.2,23.18298132]
[1769988309688,27.62685253,100.24,100.19,23.18298132]
[1769988310311,27.62685253,100.28,100.23,23.18298132]
[1769988310502,23.18298132,100.29,100.24,23.46730446]
[1769988310706,23.18298132,100.28,100.23,23.46730446]
[1769988310904,27.62685253,100.29,100.24,23.46730446]
[1769988311105,23.18298132,100.27,100.23,9.97705277]
[1769988311320,23.18298132,100.26,100.21,23.18298132]
[1769988311507,39.33945869,100.3,100.23,27.7404495]
[1769988311817,1e-08,100.32,100.28,23.46730446]
[1769988311997,1e-08,100.32,100.29,23.18298132]
[1769988312202,1e-08,100.32,100.31,23.18298132]
[1769988312420,1e-08,100.32,100.29,9.91833006]
[1769988312618,23.18298132,100.37,100.31,23.46730446]
[1769988312914,6.31158088,100.38,100.36,33.14651515]
[1769988313209,24.99151754,100.44,100.37,28.5438432]
[1769988313210,0.1,100.44,100.37,28.5438432]
[1769988313518,0.1,100.44,100.41,23.18298132]
[1769988313700,6.40037334,100.47,100.43,0.28432314]
[1769988313902,6.40037334,100.47,100.43,27.7404495]
[1769988314090,6.40037334,100.47,100.45,23.18298132]
[1769988314412,6.31809003,100.51,100.46,5.64518502]
[1769988314600,6.62585542,100.57,100.5,23.18298132]
[1769988314916,6.62585542,100.57,100.53,23.18298132]
[1769988315303,6.62585542,100.57,100.53,0.28432314]
[1769988315495,4.44387121,100.53,100.46,9.95407162]
[1769988315815,23.18298132,100.52,100.47,23.46730446]
[1769988316006,23.18298132,100.49,100.44,33.42285936]
[1769988316212,23.18298132,100.46,100.41,23.18298132]
[1769988316402,4.44387121,100.53,100.46,19.37910323]
[1769988316597,27.62685253,100.57,100.52,23.18298132]
[1769988316902,27.62685253,100.58,100.53,23.46730446]
[1769988317103,4.44387121,100.56,100.46,27.72]
[1769988317309,23.18298132,100.53,100.48,33.41946688]
[1769988317504,4.44387121,100.54,100.46,56.2638432]
[1769988317706,27.62685253,100.56,100.5,23.18298132]
[1769988317997,27.62685253,100.57,100.52,23.46730446]
[1769988318216,4.44387121,100.55,100.47,43.318285]
[1769988318414,2.47215037,100.59,100.54,27.7404495]
[1769988318605,25.65513169,100.59,100.54,4.55746818]
[1769988318810,27.45825217,100.58,100.53,23.18298132]
[1769988319118,23.18298132,100.54,100.48,37.40820781]
[1769988319308,23.18298132,100.51,100.47,9.95235223]
[1769988319615,23.18298132,100.48,100.43,4.27314504]
[1769988319815,23.18298132,100.48,100.31,45.7462525]
[1769988319816,4.27527085,100.47,100.38,4.27314504]
[1769988320112,4.27527085,100.46,100.39,9.96102913]
[1769988320293,4.44387121,100.55,100.43,4.27314504]
[1769988320499,23.18298132,100.51,100.46,23.18298132]
[1769988320711,23.18298132,100.48,100.43,23.18298132]
[1769988320913,4.44387121,100.47,100.37,4.27314504]
[1769988321116,23.18298132,100.44,100.38,27.45612636]
[1769988321317,23.18298132,100.44,100.39,23.18298132]
[1769988321528,23.18298132,100.44,100.39,27.45612636]
[1769988321717,23.18298132,100.44,100.34,112.41197926]
[1769988321718,23.18298132,100.42,100.37,4.27314504]
[1769988321921,23.18298132,100.39,100.34,37.6661152]
[1769988322111,23.18298132,100.41,100.35,27.45612636]
[1769988322302,14.39785243,100.47,100.39,4.27314504]
[1769988322502,23.18298132,100.41,100.35,4.27314504]
[1769988322707,4.44387121,100.44,100.37,23.18298132]
[1769988322939,23.18298132,100.43,100.38,4.27314504]
[1769988323127,23.18298132,100.4,100.36,14.23659928]
[1769988323315,23.18298132,100.4,100.36,10.24777738]
[1769988323633,4.44387121,100.39,100.31,27.45612636]
[1769988323810,8.71914206,100.41,100.34,27.45612636]
[1769988324127,27.62685253,100.42,100.36,23.18298132]
[1769988324308,4.44387121,100.45,100.37,23.18298132]
[1769988324508,4.44387121,100.48,100.41,23.46730446]
[1769988324712,23.18298132,100.49,100.43,28.82816634]
[1769988324910,23.18298132,100.46,100.41,23.18298132]
[1769988325111,23.18298132,100.45,100.4,23.18298132]
[1769988325304,23.18298132,100.45,100.39,33.10131138]
[1769988325510,27.62685253,100.47,100.42,33.14115698]
[1769988325712,27.62685253,100.47,100.39,9.63400692]
[1769988325713,23.18298132,100.45,100.4,23.18298132]
[1769988325905,23.18298132,100.46,100.41,10.24320311]
[1769988326109,23.18298132,100.45,100.41,10.24320311]
[1769988326316,4.44387121,100.5,100.41,38.78704631]
[1769988326516,23.18298132,100.49,100.43,23.46730446]
[1769988326729,0.6768816,100.55,100.42,4.27314504]
[1769988326730,23.18298132,100.51,100.46,23.18298132]
[1769988326924,23.18298132,100.5,100.45,23.18298132]
[1769988327130,4.44387121,100.54,100.46,23.46730446]
[1769988327312,2.47215037,100.59,100.46,23.46730446]
[1769988327313,23.18298132,100.56,100.5,23.18298132]
[1769988327507,4.44387121,100.57,100.5,23.18298132]
[1769988327508,4.44387121,100.57,100.52,23.18298132]
[1769988327708,27.62685253,100.58,100.52,27.96432314]
[1769988327914,4.44387121,100.58,100.52,27.68]
[1769988328117,23.18298132,100.56,100.52,27.68]
[1769988328415,12.41421694,100.59,100.47,4.27314504]
[1769988328416,23.18298132,100.53,100.47,4.27314504]
[1769988328623,23.18298132,100.54,100.49,23.46730446]
[1769988328931,23.18298132,100.5,100.45,62.2984534]
[1769988329131,27.62685253,100.48,100.44,9.95594926]